bitfinex/quotes_ETHUSD_20240729
["timestamp","ask_amount","ask_price","bid_price","bid_amount"]
[1722259224457,2.325,3380.2,3379.0,7.24]
[1722259224458,1.54322129,3379.6,3379.1,2.44618277]
[1722259224655,1.54322129,3379.7,3379.2,0.05917692]
[1722259224858,5.1187398,3380.4,3379.2,0.05917692]
[1722259224859,3.0,3380.0,3379.2,0.05917692]
[1722259225181,3.0,3380.3,3379.2,0.05917692]
[1722259225354,1.54311173,3380.0,3379.2,0.05917692]
[1722259225554,1.54306747,3380.0,3379.2,0.05917692]
[1722259226076,1.54306747,3380.0,3379.1,2.387]
[1722259226077,1.54306747,3380.1,3379.3,0.05917237]
[1722259226270,3.0,3380.3,3379.3,0.05917237]
[1722259226574,2.95814,3380.5,3379.1,2.387]
[1722259226879,4.590517,3380.4,3379.1,2.387]
[1722259227268,7.548737,3380.4,3379.1,2.387]
[1722259228002,4.590517,3380.4,3379.2,0.05917504]
[1722259228171,1.590517,3380.4,3379.2,0.05917504]
[1722259228495,1.590517,3380.4,3379.1,2.387]
[1722259228798,3.0,3380.5,3379.3,2.4532]
[1722259229001,4.78,3380.9,3379.4,0.0591675]
[1722259229157,0.55,3380.8,3379.5,2.4532]
[1722259229349,2.95758,3381.2,3379.7,2.4532]
[1722259229593,8.05520574,3381.4,3379.7,2.4532]
[1722259229889,2.95788,3380.8,3379.7,2.4532]
[1722259230096,2.958,3380.7,3379.7,2.4532]
[1722259230402,2.95811,3380.6,3379.7,2.4532]
[1722259230759,3.0,3380.5,3379.7,2.4532]
[1722259231122,5.37828,3380.7,3379.7,2.4532]
[1722259231406,5.37828,3380.7,3379.0,7.24]
[1722259231407,2.95832,3380.3,3379.3,2.4532]
[1722259231696,3.0,3380.2,3379.3,2.4532]
[1722259231898,5.9584,3380.2,3379.3,2.4532]
[1722259232094,2.95849,3380.1,3379.3,2.4532]
[1722259232296,3.0,3380.0,3379.3,2.4532]
[1722259232501,0.595849,3379.9,3379.3,2.4532]
[1722259235606,0.595849,3379.9,3379.0,7.24]
[1722259235812,6.513269,3379.9,3379.0,7.24]
[1722259235994,5.95875,3379.8,3379.0,7.24]
[1722259236178,2.95875,3379.8,3379.0,7.24]
[1722259236385,3.8862199,3379.7,3379.0,7.24]
[1722259237482,6.8450799,3379.7,3379.0,7.24]
[1722259238214,2.95894,3379.6,3379.0,7.24]
[1722259238388,3.0,3379.5,3379.0,7.24]
[1722259238582,3.8862199,3379.7,3378.8,2.2592]
[1722259238785,3.0,3379.6,3378.9,0.0591824]
[1722259238997,3.0,3379.9,3378.9,0.0591824]
[1722259239310,3.0,3380.2,3378.9,0.0591824]
[1722259239518,3.0,3380.3,3379.0,2.4769]
[1722259239866,5.9584,3380.3,3379.0,2.4769]
[1722259240078,1.131755,3380.2,3379.0,2.4769]
[1722259240588,2.9585,3380.1,3379.0,2.4769]
[1722259240790,3.0,3380.0,3379.0,2.4769]
[1722259241520,1.54079041,3379.8,3379.0,2.4769]
[1722259242086,5.95862,3380.0,3379.0,2.4769]
[1722259242087,1.54079041,3379.7,3379.0,2.4769]
[1722259242410,5.95862,3380.0,3379.1,0.05917679]
[1722259242411,1.54079041,3379.8,3379.1,0.05917679]
[1722259242615,3.0,3380.0,3379.0,2.72459]
[1722259242616,1.54079041,3379.9,3379.0,2.4769]
[1722259242801,1.54079041,3379.6,3379.0,2.4769]
[1722259243314,4.54079041,3379.8,3379.0,2.72459]
[1722259243478,1.54079041,3379.8,3379.0,2.72459]
[1722259243912,1.54079041,3379.8,3379.1,0.05917618]
[1722259244210,3.0,3380.0,3379.1,0.05917618]
[1722259244211,1.54079041,3379.9,3379.1,0.05917618]
[1722259244369,1.54079041,3379.9,3379.0,2.72459]
[1722259244370,1.54079041,3379.9,3379.2,0.27837662]
[1722259245012,1.54079041,3379.8,3379.2,0.27837662]
[1722259245373,3.0,3380.1,3379.2,0.27837662]
[1722259245374,1.54079041,3379.7,3379.2,0.27837662]
[1722259245578,1.54079041,3379.8,3379.0,2.4769]
[1722259245778,1.54079041,3379.7,3379.0,2.4769]
[1722259246375,1.54079041,3379.6,3379.0,2.4769]
[1722259247312,4.84894849,3379.9,3379.0,2.4769]
[1722259247313,1.54079041,3379.7,3379.1,0.05917987]
[1722259247512,1.54079041,3379.8,3379.1,0.05917987]
[1722259247873,1.54079041,3379.7,3379.1,0.05917987]
[1722259248072,0.48489485,3379.9,3379.1,0.05917987]
[1722259248306,1.53998601,3379.6,3379.0,2.4769]
[1722259248508,1.53998601,3379.6,3379.0,2.72459]
[1722259248819,1.53998601,3379.7,3379.0,2.72459]
[1722259249319,0.48489485,3379.9,3379.0,2.4769]
[1722259249320,1.53998601,3379.5,3379.0,2.4769]
[1722259249471,1.53998601,3379.4,3379.0,2.4769]
[1722259249826,1.53998601,3379.4,3378.6,7.24]
[1722259249827,1.53998601,3379.3,3378.6,7.24]
[1722259250734,1.53998601,3379.4,3378.6,7.24]
[1722259251027,1.53998601,3379.3,3378.6,7.24]
[1722259251698,1.53928376,3379.3,3378.6,7.24]
[1722259252226,1.53917672,3379.2,3378.6,7.24]
[1722259252427,1.53917672,3379.1,3378.6,7.24]
[1722259252933,3.0,3379.2,3378.6,7.24]
[1722259252934,1.53917672,3379.0,3378.6,7.24]
[1722259253157,1.53917672,3378.9,3378.6,7.24]
[1722259253490,1.53917672,3378.8,3378.6,7.24]
[1722259253734,1.53917672,3378.8,3378.2,2.4684]
[1722259253914,4.53917672,3378.8,3378.2,2.4684]
[1722259254440,3.0,3378.7,3378.2,2.4684]
[1722259254641,1.53917672,3378.9,3378.2,2.4684]
[1722259255134,4.53943067,3379.0,3378.2,2.4684]
[1722259255345,3.0,3378.9,3378.3,0.05919376]
[1722259255501,1.53943067,3379.1,3378.3,0.05919376]
[1722259256028,1.53943067,3379.1,3378.2,2.4684]
[1722259256330,1.53943067,3379.0,3378.2,2.4684]
[1722259256635,1.53943067,3379.0,3378.3,0.05919374]
[1722259256832,1.53943067,3379.1,3378.3,0.05919374]
[1722259257328,0.58419223,3379.2,3378.3,0.05919374]
[1722259257329,1.53943067,3379.0,3378.3,0.05919374]
[1722259257543,1.53943067,3379.0,3378.2,2.4684]
[1722259257746,0.80828829,3379.0,3378.2,2.4684]
[1722259258026,2.34771896,3379.0,3378.2,2.4684]
[1722259258330,5.34771896,3379.0,3378.2,2.4684]
[1722259258527,1.53954156,3378.9,3378.2,2.4684]
[1722259258688,4.53954156,3378.9,3378.2,2.4684]
[1722259258895,1.53954156,3378.8,3378.2,2.4684]
[1722259259133,4.53954156,3378.8,3378.2,2.4684]
[1722259260350,4.53954156,3378.8,3378.1,7.24]
[1722259260351,4.49940156,3378.6,3378.1,7.24]
[1722259260493,1.53954156,3378.3,3378.1,7.24]
[1722259260693,0.44995216,3378.2,3378.1,7.24]
[1722259261293,3.0,3378.5,3378.1,7.24]
[1722259261294,1.53834415,3378.4,3378.1,7.24]
[1722259261603,4.53831892,3378.5,3378.1,7.24]
[1722259261804,3.0,3378.4,3378.1,7.24]
[1722259262005,1.53846084,3378.5,3378.1,7.24]
[1722259262346,4.53846084,3378.7,3378.1,7.24]
[1722259262512,1.53846084,3378.7,3378.1,7.24]
[1722259262913,4.49819084,3378.7,3378.1,7.24]
[1722259263237,4.49819084,3378.7,3377.7,12.10101661]
[1722259263238,2.95989,3378.5,3377.8,7.24]
[1722259263400,3.0,3378.4,3377.8,7.24]
[1722259263596,1.04983508,3378.3,3377.8,7.24]
[1722259264321,4.04983508,3378.3,3377.8,7.24]
[1722259264522,1.04983508,3378.3,3377.8,7.24]
[1722259269171,3.0,3378.5,3377.5,2.4408]
[1722259269480,2.95974,3378.7,3377.6,0.05920422]
[1722259269678,3.0,3378.6,3377.6,0.05920422]
[1722259269976,4.5358809,3378.8,3377.6,0.05920422]
[1722259269977,3.0,3378.8,3377.6,0.05920422]
[1722259270130,1.04549209,3378.7,3377.6,0.05920422]
[1722259271854,3.0,3378.8,3377.6,0.05920422]
[1722259272165,2.95972,3378.7,3377.6,0.05920422]
[1722259272364,3.0,3378.6,3377.6,0.05920422]
[1722259272572,2.95972,3378.7,3377.5,2.4408]
[1722259272779,3.0,3378.6,3377.5,2.4408]
[1722259273149,2.95989,3378.5,3377.5,2.4408]
[1722259273381,2.95972,3378.7,3377.5,2.4408]
[1722259273382,3.0,3378.4,3377.6,0.05920625]
[1722259273560,7.49576355,3378.9,3377.6,0.05920625]
[1722259273811,8.66610116,3378.9,3377.6,0.05920625]
[1722259273980,8.66610116,3378.9,3377.5,2.4408]
[1722259274285,2.95964,3378.8,3377.6,0.05920166]
[1722259274470,3.0,3378.7,3377.6,0.05920166]
[1722259274902,4.53618355,3378.8,3377.6,0.05920166]
[1722259275048,5.76512769,3378.8,3377.6,0.05920166]
[1722259275382,8.72476769,3378.8,3377.6,0.05920166]
[1722259275744,7.18858414,3378.8,3377.6,0.05920166]
[1722259276149,5.76512769,3378.8,3377.6,0.05920166]
[1722259276463,3.0,3378.8,3377.6,0.05920166]
[1722259276685,4.53618355,3378.8,3377.6,0.05920166]
[1722259276849,7.49600726,3378.8,3377.5,2.4408]
[1722259277484,2.95982,3378.6,3377.5,2.4408]
[1722259277698,3.0,3378.5,3377.5,2.4408]
[1722259277901,0.74961973,3378.4,3377.5,2.4408]
[1722259278300,2.96009,3378.3,3377.5,2.4408]
[1722259278468,3.0,3378.2,3377.5,2.4408]
[1722259278985,3.0,3378.2,3377.5,2.50000786]
[1722259279184,3.0,3378.5,3377.5,2.50000786]
[1722259279386,3.0,3378.6,3377.5,2.50000786]
[1722259279693,4.53637726,3378.7,3377.5,2.50000786]
[1722259279899,5.95973,3378.7,3377.5,2.4408]
[1722259280060,1.5361926,3378.6,3377.5,2.4408]
[1722259280401,2.95989,3378.5,3377.5,2.4408]
[1722259280600,3.0,3378.4,3377.5,2.4408]
[1722259282083,3.0,3378.4,3377.6,0.05920535]
[1722259282597,5.95989,3378.5,3377.5,2.4408]
[1722259282771,1.15013719,3378.4,3377.5,2.4408]
[1722259282956,1.15013719,3378.4,3377.5,2.50000532]
[1722259283157,1.15013719,3378.4,3377.5,2.4408]
[1722259283395,4.11011719,3378.4,3377.5,2.4408]
[1722259283601,3.0,3378.3,3377.5,2.4408]
[1722259283760,1.53594378,3379.0,3377.6,0.05920776]
[1722259283958,3.62313254,3379.3,3377.6,2.39580776]
[1722259283959,1.53594378,3379.1,3377.6,2.39580776]
[1722259284259,4.49531378,3379.1,3377.6,2.39580776]
[1722259284456,0.9818836,3379.0,3377.6,2.39580776]
[1722259284657,0.9818836,3379.0,3377.6,2.3366]
[1722259284658,2.95969,3378.8,3377.6,2.3366]
[1722259285097,1.53594378,3378.9,3377.7,0.05920336]
[1722259285295,0.55,3378.8,3377.7,0.05920336]
[1722259285497,3.55,3378.8,3377.7,0.05920336]
[1722259285671,1.67670474,3378.7,3377.7,0.05920336]
[1722259286599,1.67670474,3378.7,3377.6,2.3366]
[1722259286965,4.63642474,3378.7,3377.6,2.3366]
[1722259287165,3.0,3378.6,3377.6,2.3366]
[1722259287406,5.95981,3378.6,3377.6,2.3366]
[1722259287584,1.86424238,3378.5,3377.6,2.3366]
[1722259287776,5.95981,3378.6,3377.6,2.3366]
[1722259288675,3.0,3378.6,3377.6,2.3366]
[1722259288873,7.73972,3378.7,3377.6,2.3366]
[1722259289199,5.04625902,3378.6,3377.6,2.3366]
[1722259289401,4.53640902,3378.5,3377.6,2.3366]
[1722259289608,1.5785979,3378.4,3377.6,2.3366]
[1722259290861,3.11563679,3378.4,3377.6,2.3366]
[1722259291066,3.0,3378.3,3377.6,2.3366]
[1722259291728,4.5785979,3378.4,3377.6,2.3366]
[1722259291894,4.53703889,3378.5,3377.6,2.3366]
[1722259292227,4.53662323,3378.5,3377.6,2.3366]
[1722259292386,1.53662323,3378.4,3377.6,2.3366]
[1722259292892,4.53704333,3378.5,3377.7,0.0592076]
[1722259293110,3.0,3378.5,3377.9,2.3428]
[1722259293297,1.53704333,3378.8,3378.0,0.05919901]
[1722259293496,3.0,3378.9,3378.0,0.05919901]
[1722259293497,1.53704333,3378.7,3378.0,0.05919901]
[1722259295532,1.53704333,3378.6,3378.0,0.05919901]
[1722259295739,1.53704333,3378.6,3377.9,2.3428]
[1722259296137,1.53857881,3378.6,3377.9,2.3428]
[1722259296816,1.53857881,3378.5,3377.9,2.3428]
[1722259297147,1.53857881,3378.6,3377.9,2.3428]
[1722259297350,0.15385788,3378.5,3377.9,2.3428]
[1722259297511,1.53857881,3378.4,3377.9,2.3428]
[1722259297705,1.53857881,3378.3,3377.9,2.3428]
[1722259298236,1.53857881,3378.4,3377.9,2.3428]
[1722259298623,1.53857881,3378.3,3377.9,2.3428]
[1722259298842,1.53857881,3378.4,3378.0,0.05920469]
[1722259299039,4.53857881,3378.6,3377.9,2.57708]
[1722259299228,1.53857881,3378.4,3377.9,2.3428]
[1722259299427,3.0,3378.5,3377.9,2.3428]
[1722259299634,3.0,3378.8,3377.9,2.3428]
[1722259302151,5.95963,3378.8,3377.9,2.3428]
[1722259302445,3.0,3378.8,3377.9,2.3428]
[1722259302676,0.69414736,3378.7,3377.9,2.3428]
[1722259302849,0.55,3378.6,3377.9,2.3428]
[1722259303047,3.55,3378.6,3377.9,2.3428]
[1722259303347,2.95998,3378.4,3377.5,2.4696]
[1722259303747,3.0,3378.3,3377.5,2.4696]
[1722259304158,1.53947502,3378.0,3377.5,2.4696]
[1722259304722,1.53947502,3377.9,3377.5,2.4696]
[1722259304918,1.53947502,3377.8,3377.5,2.4696]
[1722259307257,1.53947502,3377.7,3377.5,2.4696]
[1722259307424,1.53947502,3377.8,3377.5,2.4696]
[1722259307620,1.53947502,3377.7,3377.5,2.4696]
[1722259307826,3.0,3377.9,3377.5,2.4696]
[1722259308047,1.53939747,3377.8,3377.5,2.4696]
[1722259308254,1.53939747,3377.9,3377.5,2.4696]
[1722259308763,1.53939747,3377.8,3377.5,2.4696]
[1722259308933,1.53939747,3377.7,3377.5,2.4696]
[1722259309459,1.53939747,3377.8,3377.5,2.4696]
[1722259309620,1.53939747,3377.7,3377.5,2.4696]
[1722259310320,1.53939747,3377.9,3377.5,2.4696]
[1722259310917,1.53939747,3377.8,3377.5,2.4696]
[1722259311728,1.53939747,3377.7,3377.2,2.4157]
[1722259312156,1.53891291,3377.7,3377.2,2.4157]
[1722259312543,3.0,3377.9,3377.3,0.05921159]
[1722259312732,1.53891291,3377.9,3377.3,0.05921159]
[1722259312930,1.53891291,3378.0,3377.3,0.05921159]
[1722259315685,3.0,3378.2,3377.3,0.05921159]
[1722259315857,1.53979119,3378.0,3377.3,0.05921159]
[1722259316256,1.53987255,3378.0,3377.4,2.4134]
[1722259316492,1.53987255,3378.0,3377.5,0.05920634]
[1722259316693,1.53987255,3378.1,3377.5,0.30646697]
[1722259316877,3.0,3378.2,3377.6,2.4134]
[1722259316878,1.53987255,3378.2,3377.6,2.4134]
[1722259317059,4.53987255,3378.3,3377.7,0.05920106]
[1722259317252,3.0,3378.2,3377.6,2.4134]
[1722259317452,3.0,3378.5,3377.6,2.4134]
[1722259317453,1.53987255,3378.1,3377.6,2.4134]
[1722259318248,1.53987255,3378.1,3377.6,2.65474]
[1722259318454,1.53987255,3378.1,3377.7,0.05920603]
[1722259318654,1.53987255,3378.2,3377.7,0.05920603]
[1722259319000,3.0,3378.4,3377.7,0.05920603]
[1722259319225,1.53991697,3378.2,3377.8,0.2713946]
[1722259319357,1.53991697,3378.3,3377.9,0.05920055]
[1722259319569,0.9818836,3379.0,3377.9,0.05920055]
[1722259319570,1.53991697,3378.4,3377.9,0.05920055]
[1722259319864,1.53991697,3378.4,3377.8,0.2713946]
[1722259319865,1.53991697,3378.5,3377.8,0.2713946]
[1722259321257,3.0,3378.7,3377.8,0.2713946]
[1722259321497,1.5401266,3378.5,3377.8,0.2713946]
[1722259322026,1.5401266,3378.5,3377.6,2.4134]
[1722259322345,1.5401266,3378.4,3377.6,2.4134]
[1722259323238,1.5401266,3378.2,3377.6,2.4134]
[1722259323601,1.5401266,3378.1,3377.6,2.4134]
[1722259323796,1.5401266,3378.0,3377.6,2.4134]
[1722259323999,1.5401266,3378.1,3377.6,2.4134]
[1722259324233,1.5401266,3378.0,3377.6,2.4134]
[1722259324435,3.0,3378.2,3377.6,2.4134]
[1722259324609,1.54032866,3378.0,3377.6,2.4134]
[1722259324804,1.54032866,3378.0,3377.5,7.24]
[1722259325009,1.54044438,3377.8,3377.5,7.24]
[1722259325227,1.54044438,3377.9,3377.2,2.283]
[1722259325435,1.54044438,3377.8,3377.2,2.283]
[1722259325756,1.54044438,3377.9,3377.2,2.283]
[1722259326105,1.54044438,3378.0,3377.2,2.283]
[1722259326649,1.54044438,3377.9,3377.2,2.283]
[1722259327640,1.54099402,3378.0,3377.2,2.283]
[1722259328056,1.54099402,3378.0,3377.4,2.3992]
[1722259328342,1.54099402,3378.2,3377.6,2.3992]
[1722259328512,1.54099402,3378.2,3377.7,0.0592026]
[1722259328841,1.54099402,3378.3,3377.8,0.24584026]
[1722259329151,4.54099402,3378.4,3377.9,0.05920065]
[1722259329298,1.54099402,3378.4,3377.9,0.05920065]
[1722259330564,3.0,3378.6,3378.0,2.3297]
[1722259330704,1.54042548,3378.5,3378.1,0.32267035]
[1722259330904,1.54042548,3378.5,3378.1,0.05919626]
[1722259331214,5.15659567,3379.1,3378.0,2.3297]
[1722259331215,1.54037257,3378.4,3378.0,2.3297]
[1722259331603,1.54037257,3378.4,3377.7,2.2736]
[1722259332063,1.54037257,3378.1,3377.7,2.2736]
[1722259332502,1.54037257,3378.0,3377.7,2.2736]
[1722259332705,1.54037257,3378.2,3377.7,2.2736]
[1722259332906,4.54037257,3378.3,3377.8,0.05920364]
[1722259333128,5.50658114,3379.3,3377.8,0.05920364]
[1722259333129,1.54037257,3378.4,3377.8,0.05920364]
[1722259333340,1.54037257,3378.5,3377.9,0.23328036]
[1722259333553,1.54037257,3378.5,3378.0,0.05919751]
[1722259333715,1.54037257,3378.5,3377.7,2.2736]
[1722259333917,1.54031329,3378.3,3377.7,2.2736]
[1722259334145,1.54031329,3378.1,3377.7,2.2736]
[1722259334567,1.54009441,3378.0,3377.7,2.2736]
[1722259334708,1.54009441,3378.1,3377.7,2.2736]
[1722259336233,1.54009441,3378.2,3377.7,2.33280483]
[1722259336515,1.53948941,3378.3,3377.8,0.05920477]
[1722259336742,4.53948941,3378.4,3377.9,0.05919939]
[1722259336957,3.0,3378.3,3377.9,0.05919939]
[1722259337133,4.5397304,3378.5,3377.9,0.05919939]
[1722259337335,4.5397304,3378.4,3377.9,0.05919939]
[1722259337530,1.5397304,3378.4,3377.9,0.05919939]
[1722259337731,1.5397304,3378.5,3377.9,0.05919939]
[1722259338365,0.79267026,3379.0,3377.9,0.05919939]
[1722259338366,1.5397304,3378.6,3378.0,2.3567]
[1722259338668,1.5397304,3378.7,3378.1,0.30078413]
[1722259339347,1.5397304,3378.6,3378.1,0.30078413]
[1722259339547,2.15562256,3379.3,3378.1,0.30078413]
[1722259339548,1.5397304,3378.7,3378.1,0.30078413]
[1722259339716,1.5397304,3378.6,3378.1,0.30078413]
[1722259339922,1.5397304,3378.6,3378.2,0.26574841]
[1722259340117,1.5397304,3378.7,3378.3,0.05919506]
[1722259341161,1.5397304,3378.8,3378.4,2.4698]
[1722259341345,1.5397304,3379.0,3378.5,0.05919025]
[1722259341557,1.5397304,3379.0,3378.6,0.25289903]
[1722259341740,1.5397304,3379.2,3378.7,0.05918806]
[1722259342189,1.5397304,3379.2,3378.8,2.2949]
[1722259342342,1.5397304,3379.2,3378.9,0.26069871]
[1722259342541,1.84767648,3379.5,3379.0,0.05918248]
[1722259342542,1.5397304,3379.5,3379.0,0.05918248]
[1722259343075,1.5397304,3379.6,3379.0,0.05918248]
[1722259343233,2.3178,3380.4,3379.1,2.3746]
[1722259343433,1.53986716,3379.8,3379.2,0.05917291]
[1722259343631,1.53986716,3379.9,3379.2,0.05917291]
[1722259343836,1.53986716,3379.9,3379.1,2.3746]
[1722259343837,1.53878755,3379.9,3379.1,2.3746]
[1722259344142,2.3178,3380.4,3379.2,0.23746]
[1722259344143,1.53878755,3380.0,3379.2,0.23746]
[1722259344355,1.53878755,3380.3,3379.4,2.3746]
[1722259344660,1.53878755,3380.4,3379.5,0.05917016]
[1722259344973,1.53878755,3380.4,3379.6,0.24337702]
[1722259345143,1.53878755,3380.4,3379.7,0.05916974]
[1722259345790,1.53878755,3380.5,3379.7,0.05916974]
[1722259345962,1.53703536,3380.5,3379.7,0.05916974]
[1722259346272,5.95798,3380.7,3379.5,0.05916979]
[1722259346440,1.53717299,3380.5,3379.5,0.05916979]
[1722259346666,4.53717299,3380.5,3379.4,2.3746]
[1722259346980,2.3065,3380.3,3379.4,2.3746]
[1722259347496,3.84367299,3380.3,3379.4,2.3746]
[1722259347644,1.53717299,3380.1,3379.2,7.24]
[1722259347838,9.02582929,3380.2,3379.2,7.24]
[1722259348250,1.53717299,3380.1,3379.2,7.24]
[1722259348967,4.49569299,3380.1,3379.2,7.24]
[1722259349176,3.0,3380.0,3379.2,7.24]
[1722259349405,1.20258893,3379.9,3379.2,7.24]
[1722259349566,2.95875,3379.8,3379.2,7.24]
[1722259349769,3.0,3379.7,3379.2,7.24]
[1722259350076,4.20258893,3379.9,3379.0,2.2671]
[1722259350582,1.20258893,3379.9,3378.8,7.24]
[1722259350897,2.95884,3379.7,3378.8,7.24]
[1722259351103,3.0,3379.6,3378.8,7.24]
[1722259351251,5.82115889,3379.8,3378.8,7.24]
[1722259351456,1.20956759,3379.7,3378.8,7.24]
[1722259352473,4.16840759,3379.7,3378.8,7.24]
[1722259352673,4.49388112,3379.6,3378.8,7.24]
[1722259352872,3.0,3379.5,3378.8,7.24]
[1722259353312,3.0,3379.6,3378.8,7.24]
[1722259353537,1.1524267,3379.5,3378.8,7.24]
[1722259353676,3.0,3379.7,3378.8,7.24]
[1722259353879,1.53478052,3380.1,3379.0,2.4026]
[1722259354079,5.34534,3380.5,3379.0,2.4026]
[1722259354080,4.53478052,3380.2,3379.0,2.4026]
[1722259354308,3.0,3380.1,3379.1,0.05917541]
[1722259354481,3.42622074,3380.1,3379.1,0.05917541]
[1722259354817,3.0,3380.0,3379.1,0.05917541]
[1722259355022,3.92198052,3380.5,3379.2,2.4204]
[1722259355023,1.53478052,3380.5,3379.2,2.4204]
[1722259355316,1.5352071,3380.6,3379.3,0.05916872]
[1722259355674,2.95793,3380.8,3379.3,0.05916872]
[1722259355874,2.53750264,3380.7,3379.4,0.24795687]
[1722259356093,2.53750264,3380.7,3379.5,0.05916596]
[1722259356325,1.00244314,3380.7,3379.6,2.3933]
[1722259356524,2.95756,3381.2,3379.7,0.05916264]
[1722259356525,1.5350595,3381.0,3379.7,0.05916264]
[1722259356677,4.4926695,3381.1,3379.6,2.3933]
[1722259356879,1.5350595,3381.0,3379.6,2.3933]
[1722259357181,0.74502295,3380.9,3379.6,2.3933]
[1722259357670,4.73802,3380.7,3379.6,2.3933]
[1722259357876,3.0,3380.6,3379.6,2.3933]
[1722259358110,5.95813,3380.6,3379.6,2.3933]
[1722259359221,2.95828,3380.4,3379.6,2.3933]
[1722259359431,8.91672,3380.3,3379.3,7.24]
[1722259359716,2.95857,3380.1,3379.3,7.24]
[1722259360291,3.0,3380.0,3379.4,0.05917801]
[1722259360588,3.0,3380.4,3379.4,0.05917335]
[1722259360904,3.63142754,3380.5,3379.4,0.05917335]
[1722259361108,0.36314275,3380.4,3379.4,0.05917335]
[1722259362873,2.95841,3380.2,3379.3,7.24]
[1722259363227,5.95854,3380.1,3379.3,7.24]
[1722259363381,6.50854,3380.1,3379.3,7.24]
[1722259363920,2.95869,3379.9,3379.3,7.24]
[1722259364072,4.496723,3379.8,3379.3,7.24]
[1722259364277,7.455493,3379.8,3378.9,7.24]
[1722259364473,4.496723,3379.8,3378.9,7.24]
[1722259364727,1.496723,3379.8,3378.9,7.24]
[1722259364880,3.0,3380.0,3379.0,0.05917906]
[1722259365077,3.0,3380.0,3379.1,2.4575]
[1722259365289,1.89757,3380.4,3379.1,2.4575]
[1722259365290,3.36314275,3380.4,3379.1,2.4575]
[1722259365504,2.95836,3380.3,3379.1,2.4575]
[1722259365688,4.14456711,3380.2,3379.1,2.4575]
[1722259366312,3.0,3380.1,3379.1,2.4575]
[1722259366486,1.14456711,3380.2,3379.1,2.4575]
[1722259368220,4.10296711,3380.2,3379.1,2.4575]
[1722259368424,5.95849,3380.1,3379.1,2.4575]
[1722259368624,1.30614571,3380.0,3379.1,2.4575]
[1722259368926,3.50869,3379.9,3379.1,2.4575]
[1722259369139,3.0,3379.8,3379.1,2.4575]
[1722259369281,0.55,3379.9,3379.1,2.4575]
[1722259369797,3.0,3380.0,3379.2,0.0591825]
[1722259369999,1.14456711,3380.2,3379.2,0.0591825]
[1722259370321,1.14456711,3380.2,3379.1,2.4575]
[1722259370322,1.07805788,3380.1,3379.1,2.4575]
[1722259372312,4.07805788,3380.1,3379.1,2.4575]
[1722259374193,7.03654788,3380.1,3379.1,2.4575]
[1722259375793,4.07805788,3380.1,3379.1,2.4575]
[1722259375993,2.95873,3379.9,3379.1,2.4575]
[1722259376221,6.8118874,3379.8,3379.1,2.4575]
[1722259376433,8.34778349,3379.8,3379.1,2.4575]
[1722259377922,5.38901349,3379.8,3379.1,2.4575]
[1722259378122,2.38901349,3379.8,3379.1,2.4575]
[1722259378339,5.34802813,3379.8,3379.1,2.4575]
[1722259378489,4.13066481,3379.7,3379.1,2.4575]
[1722259379311,3.0,3379.7,3379.1,2.4575]
[1722259379524,0.8531174,3379.8,3379.1,2.4575]
[1722259379829,2.38926813,3379.8,3379.1,2.4575]
[1722259380004,5.38926813,3379.8,3379.1,2.4575]
[1722259380206,2.95895,3379.6,3379.1,2.4575]
[1722259380411,3.83482181,3379.5,3379.1,2.4575]
[1722259380627,3.83482181,3379.5,3378.9,7.24]
[1722259380814,5.37097254,3379.5,3378.9,7.24]
[1722259381152,0.83482181,3379.5,3378.9,7.24]
[1722259381433,1.53800227,3379.6,3378.9,7.24]
[1722259381649,3.0,3379.7,3378.9,7.24]
[1722259381849,1.53855984,3379.5,3378.9,7.24]
[1722259382222,1.53855984,3379.6,3378.9,7.24]
[1722259382441,1.53855984,3379.5,3378.9,7.24]
[1722259383000,1.53855984,3379.5,3379.0,2.37688432]
[1722259383249,4.53855984,3379.7,3379.1,0.05918017]
[1722259383419,1.53855984,3379.7,3379.1,0.05918017]
[1722259383804,1.53983094,3379.8,3379.1,0.05918017]
[1722259384038,1.53983094,3379.9,3379.1,0.05918017]
[1722259384499,3.0,3380.1,3379.1,0.05918017]
[1722259384500,1.53983094,3379.8,3379.1,0.05918017]
[1722259384700,1.53983094,3379.8,3379.0,2.3177]
[1722259385922,1.53983094,3379.7,3379.0,2.3177]
[1722259386446,1.53983094,3379.6,3379.0,2.3177]
[1722259387217,1.53983094,3379.5,3379.0,2.3177]
[1722259387542,2.17433267,3379.4,3379.0,2.3177]
[1722259387747,1.53983094,3379.3,3379.0,2.3177]
[1722259388454,4.53983094,3379.4,3379.0,2.3177]
[1722259388614,1.53983094,3379.3,3378.9,7.24]
[1722259388806,2.44779713,3379.3,3378.9,7.24]
[1722259389356,1.53983094,3379.3,3378.9,7.24]
[1722259390067,0.18462368,3379.2,3378.9,7.24]
[1722259390207,1.54180498,3379.1,3378.9,7.24]
[1722259390409,1.54180498,3379.1,3378.7,2.3804]
[1722259391462,1.54180498,3379.0,3378.7,2.3804]
[1722259391671,1.54180498,3379.0,3378.4,7.24]
[1722259391672,1.54180498,3379.0,3378.4,9.5754]
[1722259391954,1.54180498,3378.6,3378.4,7.24]
[1722259392154,1.54180498,3378.7,3378.4,7.24]
[1722259392864,1.54180498,3378.6,3378.4,7.24]
[1722259393021,1.54180498,3378.5,3378.4,7.24]
[1722259393379,3.0,3378.9,3378.4,7.24]
[1722259393517,1.54083934,3378.6,3378.4,7.24]
[1722259393713,4.54083934,3378.8,3378.4,7.24]
[1722259393917,4.54106043,3378.8,3378.4,7.24]
[1722259394145,4.54106043,3379.0,3378.5,2.4508]
[1722259394337,4.54106043,3378.9,3378.5,2.50999192]
[1722259394619,1.54106043,3378.9,3378.5,2.50999192]
[1722259394821,1.54106043,3379.0,3378.5,2.50999192]
[1722259395085,1.54106043,3378.9,3378.5,2.50999192]
[1722259395232,1.54106043,3379.0,3378.5,2.50999192]
[1722259395435,1.54106043,3378.9,3378.5,2.50999192]